bitfinex/quotes_BTCUSD_20220304
["timestamp","ask_amount","ask_price","bid_price","bid_amount"]
[1646363233183,0.21004434,41425.0,41419.0,0.2640082]
[1646363233383,0.19063636,41426.0,41419.0,0.2640082]
[1646363233585,0.4212628,41432.0,41419.0,0.2640082]
[1646363234227,0.4212628,41432.0,41417.0,0.16250164]
[1646363234428,0.15565326,41426.0,41417.0,0.16250164]
[1646363234627,0.01207,41431.0,41417.0,0.16250164]
[1646363235227,0.24473891,41423.0,41417.0,0.37278087]
[1646363235630,0.01207,41431.0,41417.0,0.37278087]
[1646363235828,0.15536975,41428.0,41417.0,0.37278087]
[1646363236630,0.26906692,41425.0,41417.0,0.37278087]
[1646363237233,0.26906692,41425.0,41417.0,0.16250164]
[1646363237435,0.07454011,41422.0,41414.0,0.12413]
[1646363237687,0.26906692,41425.0,41413.0,0.3143]
[1646363237688,0.3019628,41421.0,41413.0,0.1957]
[1646363237883,0.3019628,41421.0,41412.0,0.005]
[1646363237884,0.3622328,41424.0,41412.0,0.005]
[1646363238187,0.0482,41423.0,41412.0,0.005]
[1646363238382,0.27975813,41418.0,41412.0,0.26491711]
[1646363238581,0.27975813,41418.0,41412.0,0.25991711]
[1646363238782,0.27975813,41418.0,41411.0,0.18515766]
[1646363239082,0.0482,41420.0,41411.0,0.18515766]
[1646363239683,0.0482,41420.0,41408.0,0.1209]
[1646363239883,0.20499158,41418.0,41411.0,0.20791119]
[1646363240483,0.20499158,41418.0,41408.0,0.1209]
[1646363240689,0.20499158,41418.0,41404.0,0.29333455]
[1646363240886,0.20499158,41418.0,41408.0,0.20624589]
[1646363241527,0.20499158,41418.0,41410.0,0.26786902]
[1646363242128,0.08469216,41420.0,41410.0,0.26786902]
[1646363242530,0.08469216,41420.0,41410.0,0.26391655]
[1646363243334,0.03649216,41420.0,41410.0,0.26391655]
[1646363243530,0.01207,41424.0,41410.0,0.26391655]
[1646363244630,0.25435636,41421.0,41410.0,0.26391655]
[1646363244831,0.01207,41420.0,41410.0,0.26391655]
[1646363245031,0.01207,41424.0,41410.0,0.26391655]
[1646363246278,0.01207,41424.0,41419.0,0.22142912]
[1646363246477,0.01207,41424.0,41409.0,0.14023]
[1646363247677,0.01207,41424.0,41416.0,0.21465812]
[1646363252978,0.01207,41424.0,41421.0,0.15617266]
[1646363254478,0.3019628,41425.0,41421.0,0.15617266]
[1646363254679,0.01207,41427.0,41421.0,0.15617266]
[1646363255481,0.21010194,41427.0,41421.0,0.15617266]
[1646363255681,0.21010194,41427.0,41409.0,0.1161]
[1646363255885,0.1235,41426.0,41409.0,0.1161]
[1646363256081,0.3140328,41425.0,41409.0,0.1161]
[1646363256285,0.3130328,41425.0,41409.0,0.1161]
[1646363256737,0.27675633,41420.0,41413.0,0.44385126]
[1646363256935,0.27675633,41420.0,41413.0,0.18589938]
[1646363258040,0.001,41422.0,41413.0,0.18589938]
[1646363258842,0.3130328,41425.0,41413.0,0.18589938]
[1646363259041,0.21247357,41422.0,41413.0,0.18589938]
[1646363259240,0.3130328,41425.0,41413.0,0.18589938]
[1646363260688,0.21975649,41422.0,41413.0,0.18589938]
[1646363261789,0.3019628,41421.0,41413.0,0.18589938]
[1646363262387,0.21975649,41422.0,41413.0,0.18589938]
[1646363262789,0.23182649,41422.0,41415.0,0.23144125]
[1646363262990,0.21975649,41422.0,41415.0,0.23144125]
[1646363263189,0.01207,41424.0,41415.0,0.23144125]
[1646363264233,0.01207,41424.0,41413.0,0.18589938]
[1646363264234,0.2418494,41424.0,41413.0,0.18589938]
[1646363265235,0.2418494,41424.0,41411.0,0.001]
[1646363265236,0.05336327,41419.0,41411.0,0.001]
[1646363265439,0.22052007,41415.0,41409.0,0.1191]
[1646363265637,0.3019628,41418.0,41409.0,0.1191]
[1646363265935,0.3019628,41418.0,41409.0,0.003]
[1646363266337,0.3019628,41418.0,41410.0,0.20188092]
[1646363266735,0.51261896,41418.0,41410.0,0.20188092]
[1646363270284,0.51261896,41418.0,41407.0,0.42887759]
[1646363271729,0.51261896,41418.0,41408.0,0.17448503]
[1646363272926,0.21065616,41418.0,41408.0,0.17448503]
[1646363273327,0.3019628,41417.0,41408.0,0.17448503]
[1646363274128,0.21065616,41418.0,41408.0,0.17448503]
[1646363274628,0.21065616,41418.0,41404.0,0.013]
[1646363274629,0.3019628,41417.0,41404.0,0.013]
[1646363274832,0.84907,41416.0,41404.0,0.013]
[1646363275030,0.737,41414.0,41404.0,0.013]
[1646363275290,0.737,41412.0,41404.0,0.013]
[1646363275594,0.23999408,41406.0,41404.0,0.013]
[1646363275795,0.3019628,41409.0,41404.0,0.013]
[1646363276192,0.448006,41409.0,41404.0,0.013]
[1646363276789,0.0482,41408.0,41404.0,0.013]
[1646363276994,0.3019628,41407.0,41404.0,0.013]
[1646363277989,0.3019628,41407.0,41404.0,0.01293718]
[1646363279054,0.0482,41408.0,41404.0,0.01293718]
[1646363279642,0.3140328,41412.0,41404.0,0.01293718]
[1646363279935,0.15629131,41410.0,41404.0,0.01293718]
[1646363280140,0.3140328,41412.0,41407.0,0.2169686]
[1646363280334,0.3140328,41412.0,41404.0,0.01293718]
[1646363281339,0.58818117,41412.0,41406.0,0.24673807]
[1646363281539,0.58818117,41412.0,41404.0,0.01293718]
[1646363282141,0.00749616,41408.0,41404.0,0.01293718]
[1646363282342,0.00749616,41405.0,41404.0,0.01293718]
[1646363291586,0.002,41409.0,41404.0,0.01293718]
[1646363291791,0.1581132,41415.0,41405.0,1.3]
[1646363291989,0.05,41419.0,41406.0,0.3019628]
[1646363292187,0.01207,41421.0,41414.0,0.20459309]
[1646363292188,0.19890832,41420.0,41414.0,0.20459309]
[1646363292789,0.19890832,41420.0,41416.0,0.28031341]
[1646363293187,0.03575239,41422.0,41414.0,0.20459309]
[1646363293587,0.001,41421.0,41414.0,0.20459309]
[1646363294235,0.24507997,41421.0,41415.0,0.20370995]
[1646363294435,0.20584339,41421.0,41415.0,0.20370995]
[1646363294836,0.20484339,41421.0,41415.0,0.20370995]
[1646363295036,0.20484339,41421.0,41414.0,0.20459309]
[1646363295242,0.20484339,41421.0,41407.0,0.1128]
[1646363295439,0.20484339,41421.0,41408.0,0.002]
[1646363296237,0.20484339,41421.0,41409.0,0.23799387]
[1646363296439,0.01207,41420.0,41408.0,0.16233736]
[1646363296842,0.01207,41420.0,41408.0,0.16033736]
[1646363297339,0.27508722,41415.0,41409.0,0.27358404]
[1646363297698,0.27508722,41415.0,41408.0,0.16033736]
[1646363297906,0.13187,41420.0,41408.0,0.16033736]
[1646363298901,0.28557784,41414.0,41408.0,0.37850604]
[1646363299104,0.28557784,41414.0,41406.0,0.1837]
[1646363299703,0.001,41416.0,41405.0,0.08891]
[1646363300304,0.001,41416.0,41406.0,0.19903015]
[1646363300801,0.001,41416.0,41411.0,0.25748246]
[1646363301204,0.21507911,41417.0,41411.0,0.25748246]
[1646363301437,0.13187,41420.0,41411.0,0.25748246]
[1646363303336,0.1198,41420.0,41412.0,0.3019628]
[1646363304937,0.1198,41420.0,41411.0,0.25748246]
[1646363306791,0.1198,41420.0,41412.0,0.3019628]
[1646363307790,0.1198,41420.0,41419.0,0.18670262]
[1646363307992,0.01207,41422.0,41419.0,0.18670262]
[1646363308794,0.25759248,41422.0,41419.0,0.18670262]
[1646363309040,0.24552248,41422.0,41419.0,0.18670262]
[1646363309442,0.01147158,41420.0,41419.0,0.18670262]
[1646363309638,0.24552248,41422.0,41419.0,0.18670262]
[1646363310039,0.24052248,41422.0,41419.0,0.18670262]
[1646363311449,0.01147158,41420.0,41419.0,0.18670262]
[1646363313284,0.24052248,41422.0,41419.0,0.18670262]
[1646363313488,0.42248117,41422.0,41419.0,0.18670262]
[1646363314087,0.01207,41422.0,41419.0,0.18670262]
[1646363314987,0.01207,41422.0,41412.0,0.1145]
[1646363315190,0.15608138,41421.0,41412.0,0.1145]
[1646363315391,0.0482,41420.0,41413.0,0.3019628]
[1646363315591,0.01207,41422.0,41406.0,0.4227628]
[1646363316194,0.22528051,41422.0,41407.0,0.02413]
[1646363316434,0.22528051,41422.0,41415.0,0.2155509]
[1646363318039,0.01207,41422.0,41415.0,0.2155509]
[1646363319439,0.01207,41422.0,41415.0,0.46506492]
[1646363319440,0.27864992,41422.0,41415.0,0.46506492]
[1646363320043,0.01207,41422.0,41415.0,0.46506492]
[1646363322692,0.01207,41422.0,41415.0,0.2155509]
[1646363323791,0.27912395,41422.0,41416.0,0.23178487]
[1646363324053,0.01207,41422.0,41416.0,0.23178487]
[1646363327048,0.01207,41422.0,41415.0,0.2155509]
[1646363327348,0.17462946,41422.0,41415.0,0.2155509]
[1646363328193,0.01207,41422.0,41415.0,0.2155509]
[1646363328488,0.01207,41422.0,41410.0,0.004]
[1646363328887,0.01207,41422.0,41407.0,0.3260928]
[1646363329088,0.17023764,41419.0,41407.0,0.3260928]
[1646363329292,0.4510519,41419.0,41412.0,0.21330181]
[1646363329689,0.28081426,41419.0,41411.0,0.20794865]
[1646363330489,0.01207,41422.0,41411.0,0.20794865]
[1646363330689,0.18534307,41417.0,41411.0,0.20794865]
[1646363331737,0.18534307,41417.0,41413.0,0.26831095]
[1646363332337,0.18534307,41417.0,41413.0,0.26824329]
[1646363333139,0.01207,41422.0,41413.0,0.26824329]
[1646363335390,0.20420678,41422.0,41413.0,0.26824329]
[1646363335889,0.01207,41422.0,41413.0,0.26824329]
[1646363336189,0.24637202,41422.0,41413.0,0.26824329]
[1646363336989,0.21182504,41421.0,41413.0,0.26824329]
[1646363337390,0.24637202,41422.0,41413.0,0.26824329]
[1646363338092,0.24637202,41422.0,41412.0,0.004]
[1646363338492,0.17239723,41420.0,41412.0,0.004]
[1646363338933,0.17239723,41420.0,41411.0,0.20794865]
[1646363339935,0.01207,41422.0,41412.0,0.3260928]
[1646363340139,0.1146,41425.0,41412.0,0.3260928]
[1646363340740,0.1146,41425.0,41413.0,0.07233]
[1646363340938,0.1146,41425.0,41414.0,0.22031384]
[1646363341138,0.1146,41425.0,41415.0,0.3019628]
[1646363342242,0.01207,41429.0,41415.0,0.3019628]
[1646363343096,0.18179568,41427.0,41415.0,0.3019628]
[1646363343293,0.18179568,41427.0,41421.0,0.23469267]
[1646363343693,0.01207,41429.0,41421.0,0.23469267]
[1646363344094,0.01207,41430.0,41421.0,0.23469267]
[1646363345494,0.01207,41430.0,41424.0,0.18198135]
[1646363345694,0.22811078,41430.0,41424.0,0.18198135]
[1646363345894,0.01207,41430.0,41424.0,0.18198135]
[1646363346095,0.01205,41431.0,41424.0,0.18198135]
[1646363346738,0.01205,41431.0,41421.0,0.23469267]
[1646363346940,0.17361097,41427.0,41421.0,0.23469267]
[1646363347939,0.01205,41431.0,41421.0,0.23469267]
[1646363348938,0.15544389,41429.0,41421.0,0.23469267]
[1646363349138,0.01205,41431.0,41421.0,0.23469267]
[1646363349338,0.24124632,41432.0,41421.0,0.23469267]
[1646363349538,0.01206,41431.0,41421.0,0.23469267]
[1646363349740,0.24124632,41432.0,41421.0,0.23469267]
[1646363350687,0.34124632,41432.0,41421.0,0.23469267]
[1646363350889,0.24124632,41432.0,41421.0,0.23469267]
[1646363351189,0.00100021,41432.0,41422.0,0.30081062]
[1646363351390,0.1875478,41432.0,41422.0,0.30081062]
[1646363351588,0.00100021,41432.0,41422.0,0.30081062]
[1646363352388,0.01305021,41432.0,41422.0,0.30081062]
[1646363353689,0.00100021,41432.0,41422.0,0.30081062]
[1646363353946,0.1460432,41437.0,41423.0,0.390842]
[1646363354142,0.1460432,41437.0,41423.0,0.490842]
[1646363354341,0.05,41440.0,41423.0,0.490842]
[1646363354542,0.0011,41442.0,41423.0,0.12413]
[1646363354741,0.1542702,41435.0,41431.0,0.28149452]
[1646363354942,0.1542702,41435.0,41425.0,0.70721062]
[1646363355146,0.1542702,41435.0,41425.0,0.49511062]
[1646363355341,0.0686592,41442.0,41425.0,0.49511062]
[1646363356345,0.24680675,41437.0,41431.0,0.24277384]
[1646363356543,0.24680675,41437.0,41425.0,0.49511062]
[1646363356744,0.24680675,41437.0,41425.0,0.1943]
[1646363357350,0.01147158,41433.0,41409.0,0.2034]
[1646363357549,0.23766729,41424.0,41411.0,0.113]
[1646363357796,0.28586729,41424.0,41422.0,0.002]
[1646363358288,0.20111252,41423.0,41422.0,0.002]
[1646363358487,0.28586729,41424.0,41422.0,0.002]
[1646363358688,0.0482,41424.0,41422.0,0.002]
[1646363358891,0.0482,41424.0,41416.0,0.23390473]
[1646363360493,0.0482,41424.0,41413.0,0.007]
[1646363360691,0.20609906,41424.0,41413.0,0.007]
[1646363360892,0.20609906,41424.0,41412.0,0.16886592]
[1646363361540,0.0482,41424.0,41418.0,0.25994323]
[1646363362942,0.27912314,41424.0,41418.0,0.25994323]
[1646363363139,0.27912314,41424.0,41412.0,0.16886592]
[1646363364143,0.27912314,41424.0,41417.0,0.27545449]
[1646363364542,0.0482,41424.0,41417.0,0.27545449]
[1646363367092,0.21358942,41425.0,41417.0,0.27545449]
[1646363367291,0.01207,41429.0,41417.0,0.27545449]
[1646363368392,0.20315012,41426.0,41417.0,0.27545449]
[1646363368592,0.26204899,41427.0,41417.0,0.27545449]
[1646363368792,0.01207,41429.0,41417.0,0.27545449]
[1646363369962,0.01207,41429.0,41424.0,0.25752631]
[1646363370162,0.01207,41429.0,41416.0,0.006]
[1646363370662,0.01207,41429.0,41416.0,0.00593165]
[1646363370867,0.17859664,41429.0,41425.0,0.2117862]
[1646363371662,0.01207,41429.0,41425.0,0.2117862]
[1646363372065,0.003,41432.0,41425.0,0.2117862]
[1646363372066,0.1490432,41432.0,41425.0,0.2117862]
[1646363372265,0.003,41432.0,41425.0,0.2117862]
[1646363372466,0.003,41432.0,41426.0,0.366712]
[1646363372890,0.003,41432.0,41425.0,0.2117862]
[1646363373092,0.21231845,41436.0,41430.0,0.22276266]
[1646363373293,0.01205,41438.0,41430.0,0.22276266]
[1646363373690,0.01205,41441.0,41430.0,0.22276266]
[1646363375092,0.01205,41441.0,41426.0,0.1219]
[1646363375696,0.21608113,41437.0,41426.0,0.1219]
[1646363375894,0.01205,41441.0,41425.0,0.2117862]
[1646363376548,0.01205,41441.0,41432.0,0.23640725]
[1646363377148,0.01205,41441.0,41426.0,0.1189]
[1646363377949,0.18384269,41438.0,41426.0,0.1189]
[1646363378150,0.01205,41441.0,41426.0,0.1189]
[1646363378348,0.01205,41441.0,41429.0,0.2893401]
[1646363378951,0.32535385,41442.0,41429.0,0.2893401]
[1646363380589,0.23432128,41435.0,41429.0,0.2893401]
[1646363380785,0.23432128,41435.0,41426.0,0.1219]
[1646363380987,0.16033933,41442.0,41425.0,0.2117862]
[1646363381586,0.18149579,41437.0,41425.0,0.2117862]
[1646363381787,0.16033933,41442.0,41425.0,0.2117862]
[1646363381990,0.26324492,41435.0,41429.0,0.26860353]
[1646363382190,0.01205,41441.0,41429.0,0.26860353]
[1646363382991,0.01205,41441.0,41426.0,0.1197]
[1646363383190,0.17023941,41435.0,41426.0,0.1197]
[1646363383395,0.30081062,41434.0,41425.0,0.2117862]
[1646363384254,0.21536336,41431.0,41425.0,0.2117862]
[1646363385455,0.21536336,41431.0,41425.0,0.45571213]
[1646363385856,0.21536336,41431.0,41425.0,0.2117862]
[1646363386560,0.21536336,41431.0,41420.0,0.1217]
[1646363386759,0.30081062,41430.0,41420.0,0.002]
[1646363386959,0.34901062,41430.0,41420.0,0.002]
[1646363387162,0.34901062,41430.0,41419.0,0.3948]
[1646363387358,0.34901062,41430.0,41419.0,0.188]
[1646363387800,0.06027,41430.0,41419.0,0.188]
[1646363387999,0.27796847,41422.0,41419.0,0.188]
[1646363388198,0.0482,41421.0,41415.0,0.19791833]
[1646363389598,0.21289692,41421.0,41415.0,0.19791833]
[1646363390097,0.0482,41421.0,41415.0,0.19791833]
[1646363394142,0.28108248,41420.0,41415.0,0.19791833]
[1646363394345,0.28108248,41420.0,41414.0,0.004]
[1646363394743,0.32928248,41420.0,41414.0,0.004]
[1646363395044,0.01591645,41419.0,41414.0,0.004]
[1646363395298,0.0482,41418.0,41408.0,0.20277578]
[1646363395497,0.0482,41417.0,41408.0,0.20277578]
[1646363396496,0.0482,41417.0,41408.0,0.43058541]
[1646363400346,0.0482,41417.0,41409.0,0.3]
[1646363401248,0.01207,41420.0,41409.0,0.3]
[1646363401844,0.1231,41421.0,41409.0,0.3]
[1646363402245,0.1231,41421.0,41419.0,0.27788345]
[1646363402445,0.01207,41426.0,41419.0,0.27788345]
[1646363402696,0.0982,41434.0,41419.0,0.27788345]
[1646363402697,0.15645991,41428.0,41419.0,0.27788345]
[1646363402994,0.01207,41428.0,41419.0,0.27788345]
[1646363403194,0.01207,41429.0,41419.0,0.27788345]
[1646363403599,0.28980561,41428.0,41419.0,0.27788345]
[1646363403797,0.01207,41427.0,41419.0,0.27788345]
[1646363403997,0.01207,41428.0,41419.0,0.27788345]
[1646363404198,0.01207,41428.0,41421.0,0.19322884]
[1646363404401,0.525,41432.0,41421.0,0.19322884]
[1646363404402,0.01207,41430.0,41421.0,0.19322884]
[1646363404601,0.5,41432.0,41421.0,0.19322884]
[1646363404602,0.01205,41431.0,41421.0,0.19322884]
[1646363404799,0.51705,41432.0,41427.0,0.2325213]
[1646363405197,0.01205,41432.0,41427.0,0.2325213]
[1646363405997,0.01205,41435.0,41427.0,0.2325213]
[1646363406971,0.13075,41436.0,41427.0,0.2325213]
[1646363407367,0.01205,41436.0,41427.0,0.2325213]
[1646363407766,0.01205,41436.0,41434.0,0.17054524]
[1646363407969,0.01205,41437.0,41434.0,0.17054524]
[1646363408167,0.01205,41439.0,41434.0,0.17054524]
[1646363408369,0.125,41440.0,41434.0,0.17054524]
[1646363408969,0.1,41440.0,41434.0,0.43531132]
[1646363409173,0.1,41440.0,41434.0,0.17054524]
[1646363409370,0.27272951,41441.0,41434.0,0.17054524]
[1646363409774,0.16497424,41440.0,41434.0,0.17054524]
[1646363410196,0.1,41440.0,41434.0,0.17054524]
[1646363411197,0.27272951,41441.0,41434.0,0.17047479]
[1646363411598,0.37272951,41441.0,41434.0,0.17047479]
[1646363412501,0.18146153,41440.0,41434.0,0.17047479]
[1646363412701,0.27272951,41441.0,41434.0,0.17047479]
[1646363413098,0.3,41440.0,41434.0,0.17047479]
[1646363413699,0.27784616,41441.0,41434.0,0.17047479]
[1646363413944,0.3,41440.0,41434.0,0.17047479]
[1646363414144,0.30526949,41441.0,41434.0,0.17047479]
[1646363414346,0.3,41440.0,41434.0,0.1703474]
[1646363414546,0.1011,41442.0,41434.0,0.1703474]
[1646363414947,0.18873055,41440.0,41434.0,0.1703474]
[1646363415150,0.1011,41442.0,41434.0,0.1703474]
[1646363415346,0.01205,41441.0,41434.0,0.1703474]
[1646363416051,0.01205,41441.0,41423.0,0.34503]
[1646363416252,0.12915,41441.0,41423.0,0.34503]
[1646363416549,0.3,41440.0,41423.0,0.34503]
[1646363416747,0.01205,41439.0,41423.0,0.3209]
[1646363416949,0.16668837,41434.0,41426.0,0.21144947]
[1646363417148,0.01205,41439.0,41429.0,0.23098015]
[1646363417348,0.01197069,41439.0,41429.0,0.23098015]
[1646363417551,0.01197069,41439.0,41429.0,0.23019475]
[1646363417810,0.01197069,41439.0,41429.0,0.22946515]
[1646363418007,0.01197069,41439.0,41426.0,0.21144947]
[1646363419005,0.28513592,41437.0,41431.0,0.24084222]
[1646363419307,0.28513592,41437.0,41426.0,0.21144947]
[1646363419707,0.3,41436.0,41426.0,0.21144947]
[1646363419905,0.28513592,41437.0,41426.0,0.21144947]
[1646363420105,0.16753314,41436.0,41426.0,0.21144947]
[1646363420905,0.28513592,41437.0,41426.0,0.21144947]
[1646363421106,0.31205,41440.0,41426.0,0.21144947]
[1646363422244,0.21647426,41438.0,41431.0,0.28101554]
[1646363422445,0.31205,41440.0,41431.0,0.28101554]
[1646363422642,0.31205,41440.0,41433.0,0.18370241]
[1646363422843,0.52588816,41440.0,41433.0,0.18370241]
[1646363423047,0.31205,41440.0,41433.0,0.18370241]
[1646363423245,0.3,41440.0,41433.0,0.18370241]
[1646363423444,0.12915,41441.0,41433.0,0.18370241]
[1646363423845,0.3,41440.0,41433.0,0.18370241]
[1646363425191,0.12915,41441.0,41433.0,0.18370241]
[1646363426294,0.16965153,41438.0,41424.0,0.02413]
[1646363426692,0.16965153,41438.0,41424.0,0.12413]
[1646363427292,0.16965153,41438.0,41430.0,0.26300258]
[1646363428099,0.3,41437.0,41430.0,0.26300258]
[1646363429545,0.16965153,41438.0,41430.0,0.26300258]
[1646363433094,0.3,41437.0,41428.0,0.16594201]
[1646363433493,0.3,41437.0,41423.0,0.3209]
[1646363434097,0.22732927,41435.0,41429.0,0.24687235]
[1646363434494,0.3,41437.0,41428.0,0.20714388]
[1646363435295,0.16965153,41438.0,41428.0,0.20714388]
[1646363435497,0.16965153,41438.0,41429.0,0.22715666]
[1646363435498,0.28124364,41435.0,41429.0,0.22715666]
[1646363435696,0.3,41437.0,41429.0,0.22715666]
[1646363435901,0.17465153,41438.0,41429.0,0.22715666]
[1646363436297,0.3,41437.0,41428.0,0.20714388]
[1646363436548,0.3,41437.0,41423.0,0.3209]
[1646363436747,0.01205,41436.0,41423.0,0.3209]
[1646363437348,0.26355226,41432.0,41426.0,0.28216033]
[1646363437548,0.26355226,41432.0,41424.0,0.17350021]
[1646363438048,0.3,41431.0,41424.0,0.17350021]
[1646363438452,0.3,41435.0,41424.0,0.17350021]
[1646363438648,0.3,41435.0,41424.0,0.17338409]
[1646363439449,0.53092611,41435.0,41424.0,0.17338409]
[1646363439948,0.01205,41434.0,41424.0,0.17338409]
[1646363440392,0.01205,41434.0,41431.0,0.1964267]
[1646363440893,0.002,41440.0,41431.0,0.1964267]
[1646363440894,0.01205,41437.0,41431.0,0.1964267]
[1646363441098,0.01205,41439.0,41431.0,0.1964267]
[1646363441298,0.01205,41439.0,41434.0,0.21933803]
[1646363441495,0.01205,41441.0,41434.0,0.21933803]
[1646363441995,0.01315,41442.0,41434.0,0.21933803]
[1646363442495,0.0011,41442.0,41434.0,0.21933803]
[1646363442695,0.23796802,41442.0,41434.0,0.21933803]
[1646363443095,0.13305,41443.0,41434.0,0.21933803]
[1646363443395,0.121,41443.0,41434.0,0.21933803]
[1646363444665,0.01205,41442.0,41434.0,0.21933803]
[1646363445064,0.20561761,41438.0,41431.0,0.1964267]
[1646363446168,0.22737107,41437.0,41426.0,0.1195]
[1646363447365,0.20561761,41438.0,41430.0,0.2123321]
[1646363450401,0.20561761,41438.0,41426.0,0.29834666]
[1646363451447,0.20561761,41438.0,41429.0,0.23963193]
[1646363451645,0.21766761,41438.0,41429.0,0.23963193]
[1646363451845,0.01205,41438.0,41429.0,0.23963193]
[1646363452949,0.22888125,41438.0,41429.0,0.23963193]
[1646363453346,0.01205,41438.0,41429.0,0.23963193]
[1646363454750,0.2708938,41439.0,41429.0,0.23963193]
[1646363455399,0.21426144,41436.0,41429.0,0.23963193]
[1646363455997,0.2758938,41439.0,41429.0,0.23963193]
[1646363456996,0.45711767,41439.0,41429.0,0.23963193]
[1646363457196,0.005,41439.0,41429.0,0.23963193]
[1646363457699,0.0147012,41441.0,41429.0,0.23963193]
[1646363457998,0.01205,41440.0,41429.0,0.23963193]
[1646363458197,0.1956562,41437.0,41433.0,0.16524083]
[1646363458397,0.24859871,41440.0,41433.0,0.16524083]
[1646363459251,0.16428431,41438.0,41433.0,0.16524083]
[1646363459646,0.24859871,41440.0,41433.0,0.16524083]
[1646363460650,0.01205,41440.0,41433.0,0.16524083]
[1646363461049,0.24838991,41442.0,41433.0,0.16524083]
[1646363461050,0.01205,41441.0,41433.0,0.16524083]
[1646363461454,0.621,41443.0,41433.0,0.16524083]
[1646363461653,0.621,41443.0,41438.0,0.20708329]
[1646363461856,0.17868472,41442.0,41438.0,0.20708329]
[1646363462051,0.64438991,41443.0,41433.0,0.16524083]
[1646363462452,0.035939,41444.0,41433.0,0.16524083]
[1646363462897,0.047989,41444.0,41433.0,0.16524083]
[1646363463098,0.21084208,41443.0,41436.0,0.23076573]
[1646363463498,0.047989,41444.0,41436.0,0.23076573]
[1646363463900,0.035939,41444.0,41436.0,0.23076573]
[1646363464300,0.22047037,41444.0,41436.0,0.23076573]
[1646363464700,0.48729238,41444.0,41436.0,0.23076573]
[1646363465100,0.48729238,41444.0,41433.0,0.16524083]
[1646363465707,0.48729238,41444.0,41431.0,0.115]
[1646363465902,0.01395607,41443.0,41431.0,0.115]
[1646363466303,0.01395607,41443.0,41431.0,0.34691356]
[1646363466748,0.01524704,41441.0,41431.0,0.34691356]
[1646363466947,0.01395866,41441.0,41431.0,0.50250534]
[1646363467150,0.01422459,41443.0,41431.0,0.50250534]
[1646363467347,0.25462675,41439.0,41431.0,0.50250534]
[1646363467548,0.25462675,41439.0,41431.0,0.38741387]
[1646363467848,0.7801145,41443.0,41431.0,0.38741387]
[1646363468146,0.7821145,41443.0,41431.0,0.38741387]
[1646363469147,0.27297776,41439.0,41431.0,0.38741387]
[1646363469547,0.01241923,41441.0,41431.0,0.38741387]
[1646363470598,0.26715851,41441.0,41431.0,0.38741387]
[1646363470797,0.01241923,41441.0,41431.0,0.38741387]
[1646363472101,0.28084061,41441.0,41431.0,0.38741387]
[1646363475649,0.28084061,41441.0,41431.0,0.15559178]
[1646363475849,0.01205,41440.0,41431.0,0.15559178]
[1646363477353,0.0280335,41440.0,41431.0,0.15559178]
[1646363479905,0.0280335,41440.0,41425.0,0.1235]
[1646363479906,0.060403,41438.0,41425.0,0.1235]
[1646363480104,0.072453,41438.0,41425.0,0.1235]
[1646363480700,0.27726146,41434.0,41428.0,0.28757427]
[1646363480901,0.120653,41438.0,41428.0,0.28757427]
[1646363481101,0.5,41437.0,41428.0,0.28757427]
[1646363481949,0.28329903,41436.0,41428.0,0.28757427]
[1646363484047,0.28329903,41436.0,41427.0,0.17192148]
[1646363485305,0.28329903,41436.0,41429.0,0.20944849]
[1646363485701,0.5,41437.0,41429.0,0.20944849]
[1646363485902,0.5,41437.0,41429.0,0.20944471]
[1646363486307,0.01205,41438.0,41429.0,0.20944471]
[1646363486505,0.01205,41440.0,41429.0,0.20944471]
[1646363486705,0.25062599,41440.0,41429.0,0.20944471]
[1646363486902,0.01205,41440.0,41429.0,0.20944471]
[1646363487303,0.02420109,41440.0,41434.0,0.15702186]
[1646363487909,0.02420109,41440.0,41436.0,0.28244685]
[1646363488105,0.01205,41440.0,41434.0,0.15702186]
[1646363488305,0.01404825,41441.0,41434.0,0.15702186]
[1646363488505,0.01205,41440.0,41434.0,0.15702186]
[1646363488954,0.02609825,41441.0,41434.0,0.15702186]
[1646363489154,0.31161666,41441.0,41434.0,0.15702186]
[1646363489351,0.02609825,41441.0,41434.0,0.15702186]
[1646363489552,0.01205,41441.0,41434.0,0.15702186]
[1646363490155,0.01205,41441.0,41428.0,0.3]
[1646363490352,0.22264644,41438.0,41431.0,0.23670842]
[1646363490952,0.25643991,41442.0,41431.0,0.23670842]
[1646363491351,0.11205,41442.0,41433.0,0.20560912]
[1646363492352,0.21559937,41439.0,41433.0,0.20560912]
[1646363492797,0.25643991,41442.0,41433.0,0.20560912]
[1646363492996,0.15643991,41442.0,41433.0,0.20560912]
[1646363493203,0.01205,41442.0,41433.0,0.20560912]
[1646363494300,0.24662619,41442.0,41433.0,0.20560912]
[1646363494800,0.15643991,41442.0,41433.0,0.20560912]
[1646363495002,0.01205,41442.0,41433.0,0.20560912]
[1646363495407,0.14438991,41443.0,41434.0,0.666712]
[1646363495604,0.14438991,41443.0,41436.0,0.366712]
[1646363495813,0.5,41444.0,41438.0,0.57530326]
[1646363496304,0.0011,41452.0,41438.0,0.59943326]
[1646363496951,0.0011,41452.0,41438.0,0.71373326]
[1646363497152,0.0011,41452.0,41449.0,0.19893542]
[1646363497552,0.0011,41452.0,41450.0,0.18697186]
[1646363500311,0.0011,41452.0,41451.0,0.666712]
[1646363500714,0.0011,41452.0,41451.0,0.366712]
[1646363502812,0.0011,41452.0,41451.0,0.666712]
[1646363503212,0.0011,41452.0,41451.0,0.366712]
[1646363505047,0.0011,41452.0,41451.0,0.666712]
[1646363505247,0.0011,41452.0,41451.0,0.366712]
[1646363505447,0.0011,41452.0,41451.0,0.666712]
[1646363506549,0.0011,41452.0,41451.0,0.366712]
[1646363506750,0.0011,41452.0,41451.0,0.666712]
[1646363508807,0.0011,41452.0,41451.0,0.366712]
[1646363512251,0.0011,41452.0,41451.0,0.666712]
[1646363514558,0.0011,41452.0,41451.0,0.366712]
[1646363517404,0.0011,41452.0,41451.0,0.666712]
[1646363518003,0.0011,41452.0,41451.0,0.366712]
[1646363519454,0.0011,41452.0,41451.0,0.36659501]
[1646363519655,0.0011,41452.0,41451.0,0.66659501]
[1646363522159,0.0011,41452.0,41451.0,0.66581161]
[1646363522359,0.0011,41452.0,41451.0,0.66505715]
[1646363522558,0.0011,41452.0,41451.0,0.66428454]
[1646363527860,0.0011,41452.0,41451.0,0.36428454]
[1646363528862,0.0011,41452.0,41451.0,0.66428454]